Cogmind - Beta 16 @@@ ROGUE MODE // 2025.11.16 @ 13:47:20 Player: Minty Result: Destroyed by G-47 Trooper with Particle Gun Performance ------------- Evolutions (2) 1000 Regions Visited (3) 600 Robots Destroyed (48) 240 Value Destroyed (1481) 1481 Prototype IDs (2) 40 Alien Tech Used (0) 0 Bonus (0) 0 TOTAL SCORE: 3361 Bonus ------- None Cogmind --------- Core Integrity 0/550 Matter 146/300 Energy 280/280 System Corruption 9% Temperature Cool (9) Movement Rolling (80) Location -8/Materials Parts ------- > --- POWER (1) -------- Cooled Ion Engine > --- PROPULSION (3) --- Wheel Wheel > --- UTILITY (3) ------ Improved Signal Interpreter > --- WEAPON (4) ------- Axe > --- INVENTORY (5) ---- Large Storage Unit Heavy Battle Rifle Peak State ------------ > --- POWER ------------ Improved Ion Engine > --- PROPULSION ------- Armored Wheel Armored Wheel Armored Wheel > --- UTILITY ---------- Improved Heat Sink Small Storage Unit Makeshift Light Armor Plating > --- WEAPON ----------- Riot Gun Beam Rifle Heavy Particle Gun Heavy Battle Rifle > --- INVENTORY -------- Improved Ion Engine Cooled Ion Engine Light Nuclear Core Airjet Airjet Airjet Reactive Plating Insulated Plating [Rating: 31] Favorites ----------- Power Improved Ion Engine Engine Improved Ion Engine Propulsion Armored Wheel Treads Light Treads Leg Aluminum Leg Wheel Armored Wheel Hover Unit Airjet Utility Small Storage Unit Device Improved Heat Sink Storage Small Storage Unit Processor Improved Signal Interpreter Protection Makeshift Light Armor Plating Weapon Particle Gun Energy Gun Particle Gun Ballistic Gun Subdweller Machine Gun Ballistic Cannon Assault Cannon Slashing Weapon Axe Build | -11 -10 -10 -8 ------- Run | Yrd Mat Sub Mat Slots Evolved 4 | . . . 4 Power . | . . . . Propulsion 1 | . . . 1 Utility 1 | . . . 1 Weapon 2 | . . . 2 Parts Attached 48 | 1 11 9 27 Power 6 | . 2 1 3 Engine 6 | . 2 1 3 Core . | . . . . Reactor . | . . . . Propulsion 14 | . 4 2 8 Treads 2 | . 2 . . Leg 3 | . 2 . 1 Wheel 6 | . . 2 4 Hover 3 | . . . 3 Flight . | . . . . Utility 9 | . 2 1 6 Device 4 | . 2 1 1 Storage . | . . . . Processor 1 | . . . 1 Hackware . | . . . . Protection 4 | . . . 4 Artifact . | . . . . Weapon 19 | 1 3 5 10 Energy Gun 12 | 1 3 2 6 Energy Cannon . | . . . . Ballistic Gun 5 | . . 3 2 Ballistic Cannon 1 | . . . 1 Launcher . | . . . . Special Weapon . | . . . . Impact Weapon . | . . . . Slashing Weapon 1 | . . . 1 Piercing Weapon . | . . . . Special Melee Weapon . | . . . . Unidentified Prototypes 2 | . . . 2 Corrupted Parts 3 | . . 1 2 System Corruption 6 | . . 4 2 Parts Lost 20 | . . 4 16 Power 3 | . . 1 2 Propulsion 6 | . . 1 5 Utility 4 | . . 1 3 Weapon 7 | . . 1 6 Highest Loss Streak 7 | . . 2 7 To Critical Strikes . | . . . . Average Backups 7 | 6 7 7 7 Power 1 | 1 1 . 2 Propulsion 2 | 4 3 3 1 Utility 1 | . . 1 2 Weapon 1 | 1 1 2 1 Tool/Special . | . . . . Unused Backups 15 | . 6 3 6 Power 6 | . 2 . 4 Propulsion 5 | . 3 2 . Utility 1 | . . . 1 Weapon 3 | . 1 1 1 Tool/Special . | . . . . Average Slot Usage (%) 89 | . 97 98 77 Engine 11 | . 14 13 8 Treads 11 | . 21 15 . Leg 2 | . 6 . . Wheel 10 | . . 12 17 Hover 1 | . . . 3 Device 10 | . 11 12 8 Storage 11 | . 14 14 8 Protection 3 | . . . 8 Energy Gun 16 | . 25 12 10 Ballistic Gun 7 | . 1 15 8 Slashing Weapon 1 | . . . 3 Peak Build Rating 31 | 6 12 17 31 Average Rating 16 | 6 10 13 23 On Entrance 10 | 6 6 12 17 Avg Prop Armor Cover (%) . | . . . . Naked Turns . | . . . . Heaviest Build 32 | 12 18 22 32 Greatest Support 40 | 20 40 40 36 Greatest Overweight (x) 3 | . . . 3 Average Overweight (x) . | . . . . Largest Inventory Capacity 8 | 8 8 8 8 Average Capacity 7 | 8 8 8 7 Most Carried 8 | 6 8 8 8 Average Carried 7 | 5 7 7 7 Final Capacity 8 | 8 8 8 5 Final Carried 8 | 5 8 8 2 Class Distribution -------------------- 76% | Mutant 12% | Tank 8% | Derelict-Tank 3% | Scavenger-Mutant Dominant Class ---------------- Mutant | -10/Materials Mutant | -10/Subcaves Mutant | -8/Materials Resources | -11 -10 -10 -8 ----------- Run | Yrd Mat Sub Mat Matter Collected 969 | 200 153 230 386 Remotely . | . . . . Salvage Created 1799 | . 500 255 1044 Parts 107 | . 20 19 68 Haulers Intercepted 4 | . 1 . 3 Recyclers Shooed 3 | . 2 . 1 Parts Field Recycled . | . . . . Retrieved Matter . | . . . . Parts Self-Destructed . | . . . . Prevented . | . . . . Parts Restored . | . . . . Kills | -11 -10 -10 -8 ------- Run | Yrd Mat Sub Mat Combat Hostiles Destroyed 34 | . 8 7 19 Melee 2 | . . . 2 Guns 31 | . 8 7 16 Cannons 1 | . . . 1 Classes Destroyed 11 | . 6 1 4 Worker 2 | . 1 . 1 Builder 4 | . . . 4 Hauler 4 | . 1 . 3 Recycler 2 | . 1 . 1 Operator 1 | . 1 . . Watcher 1 | . 1 . . Swarmer 4 | . . . 4 Grunt 18 | . 8 . 10 Duelist 2 | . . . 2 Sentry 3 | . . . 3 Subdweller 7 | . . 7 . Best Kill Streak 9 | . 6 2 9 Combat Bots Only 4 | . 4 2 4 Max Kills in Single Turn 2 | . 2 1 2 Gunslinging . | . . . . Exploded . | . . . . Melee 1 | . . . 1 Uniques/NPCs Destroyed . | . . . . Combat | -11 -10 -10 -8 -------- Run | Yrd Mat Sub Mat Hostile Shots Fired 280 | . 61 51 168 Missed 71 | . 23 16 32 Hits 209 | . 38 35 136 Melee 13 | . . . 13 Projectile 196 | . 38 35 123 Critical Strikes 11 | . . 2 9 Damage Taken 3716 | . 471 732 2513 Core 785 | . 108 119 558 Absorbed by Shields . | . . . . Ignored by Resistances 24 | . . . 24 Regen/Repaired (Parts) 117 | . 30 . 87 Core Remaining (%) 54 | 100 . 9 . Volleys Fired 148 | . 31 46 71 Largest 4 | . 2 2 4 Hottest 169 | . 115 105 169 Shots Fired 289 | . 62 87 140 Gun 275 | . 62 87 126 Cannon 14 | . . . 14 Launcher . | . . . . Special . | . . . . Kinetic 133 | . 9 58 66 Thermal 106 | . 42 10 54 Explosive . | . . . . Electromagnetic 50 | . 11 19 20 Robot Hit Streak 12 | . 8 12 9 Robot Miss Streak 5 | . 2 4 5 Penetration Max . | . . . . Secondary Targets 6 | . 2 1 3 Max Gunslinging Chain 1 | . 1 1 1 Shots Hit Robots 202 | . 46 56 100 Core Hits 84 | . 19 17 48 Critical Kills . | . . . . Critical Parts Destroyed . | . . . . Critical Strikes 7 | . 1 1 5 Burn 3 | . 1 . 2 Destroy 1 | . . 1 . Blast 2 | . . . 2 Sever 1 | . . . 1 Melee Attacks 21 | . . . 21 Impact . | . . . . Slashing 21 | . . . 21 Piercing . | . . . . Sneak Attacks 2 | . . . 2 Combat Hostiles . | . . . . Follow-up Attacks . | . . . . Damage Inflicted 4017 | . 731 881 2405 Guns 2969 | . 626 881 1462 Cannons 242 | . . . 242 Explosions 325 | . 103 . 222 Melee 471 | . . . 471 Ramming 10 | . 2 . 8 Kinetic 1562 | . 90 574 898 Thermal 1274 | . 546 163 565 Explosive 166 | . . . 166 Electromagnetic 534 | . 93 144 297 Impact . | . . . . Slashing 471 | . . . 471 Piercing . | . . . . Highest Corruption 9 | . . 4 9 Average Corruption 4 | . . 4 4 Corruption Purged . | . . . . Corruption Blocked . | . . . . Effects 24 | . . 6 18 Message Errors 5 | . . . 5 Matter Fused 7 | . . 3 4 Heat Flow Errors 1 | . . 1 . Parts Rejected 1 | . . . 1 Parts Fused 2 | . . 1 1 Data Loss (minor) 4 | . . . 4 Data Loss (major) 2 | . . . 2 Alerts 1 | . . . 1 Weapon Failures 1 | . . 1 . Overload Shots . | . . . . Overflow Damage 166 | . 43 . 123 Projectiles 3 | . . . 3 Explosions 129 | . 43 . 86 Melee 34 | . . . 34 Knockbacks 2 | . . . 2 Impact . | . . . . Kinetic 2 | . . . 2 Secondary . | . . . . Self-Inflicted Damage 53 | . . . 53 Shots 1 | . . . 1 Rammed 5 | . 3 . 2 Targets Rammed 6 | . 4 . 2 Kicked . | . . . . Crushed 1 | . 1 . . Highest Temperature 366 | . 144 169 366 Average Temperature 65 | . 44 79 78 Received Heat Transfer 1347 | . 267 99 981 Siege Activations . | . . . . Martial Activations . | . . . . Shielding Activations . | . . . . Robots Disrupted . | . . . . Combat Hostiles . | . . . . Robots Corrupted . | . . . . Combat Hostiles . | . . . . Parts Fried . | . . . . Impact Corruptions . | . . . . Robots Melted . | . . . . Combat Hostiles . | . . . . Parts Melted 6 | . 5 1 . Heat Transferred 3073 | . 1358 370 1345 Parts Sabotaged . | . . . . Parts Stolen . | . . . . Parts Stripped . | . . . . Power Chain Reactions 1 | . . . 1 Alert | -11 -10 -10 -8 ------- Run | Yrd Mat Sub Mat Maximum Alert Level 1 | . . . 1 Low Security (%) 77 | 100 100 . 58 Level 1 22 | . . . 41 Level 2 . | . . . . Level 3 . | . . . . Level 4 . | . . . . Level 5 . | . . . . High Security . | . . . . Max Security . | . . . . Peak Influence 296 | . 162 . 296 Initial . | . . . . Average 108 | . 75 . 135 Influence Increases 1150 | . 369 . 781 Destroy 0b10 Robot/C 540 | . 160 . 380 Destroy 0b10 Robot/NC 70 | . 25 . 45 Destroy Leader 150 | . 54 . 96 Successful Hack 45 | . 20 . 25 Select Force Hacks 30 | . 30 . . Disable Machine 135 | . 75 . 60 Destroy Structure 45 | . 5 . 40 Lose Combat Pursuer 135 | . . . 135 Influence Decreases 913 | . 335 34 544 Entered New Map 17 | . . 17 . Time Decay 736 | . 335 17 384 Lost Part 160 | . . . 160 Squads Dispatched 7 | . 3 . 4 Investigation 4 | . 2 . 2 Extermination . | . . . . Reinforcement 3 | . 1 . 2 Assault . | . . . . Garrison . | . . . . Intercept . | . . . . Searches Triggered . | . . . . Construction Impeded 1 | . . . 1 Haulers Reinforced . | . . . . Active Scanning Responses . | . . . . Cargo Convoy Interrupts . | . . . . Stealth | -11 -10 -10 -8 --------- Run | Yrd Mat Sub Mat Distress Signals 8 | . 1 . 7 Communications Jammed . | . . . . Distress Signals . | . . . . Times Spotted 60 | . 17 7 36 Peak Tracking Total 7 | . 4 2 7 Tactical Retreats 3 | . . . 3 Traps | -11 -10 -10 -8 ------- Run | Yrd Mat Sub Mat Traps Triggered 2 | . 1 . 1 Indirectly . | . . . . Trap Hack Attempts . | . . . . Triggered . | . . . . Disarmed . | . . . . Reprogrammed . | . . . . Reused . | . . . . Traps Extracted . | . . . . Installed . | . . . . Triggered . | . . . . Machines | -11 -10 -10 -8 ---------- Run | Yrd Mat Sub Mat Machines Disabled 9 | . 5 . 4 Max in Single Turn 5 | . 5 . 2 Machines Repaired . | . . . . Machines Dismantled . | . . . . Machines Sabotaged . | . . . . Overloaded Fab Kills . | . . . . Hacking | -11 -10 -10 -8 --------- Run | Yrd Mat Sub Mat Machines Accessed 14 | . 7 . 7 Terminals 9 | . 5 . 4 Fabricators . | . . . . Repair Stations 3 | . 1 . 2 Recycling Units 1 | . 1 . . Scanalyzers 1 | . . . 1 Garrison Access . | . . . . Total Hacks 47 | . 25 . 22 Successful 24 | . 15 . 9 Failed 23 | . 10 . 13 Catastrophic . | . . . . Database Lockouts . | . . . . Manual 26 | . 16 . 10 Terminals 34 | . 21 . 13 Fabricators . | . . . . Repair Stations 7 | . 2 . 5 Recycling Units 2 | . 2 . . Scanalyzers 4 | . . . 4 Garrison Access . | . . . . Terminal Hacks 7 | . 3 . 4 Repair Station Index 1 | . . . 1 Alert Level 1 | . . . 1 Locate Traps 3 | . 1 . 2 Maintenance Status 1 | . 1 . . Hauler Manifests 1 | . 1 . . Fabricator Hacks . | . . . . Repair Station Hacks 5 | . 2 . 3 Scan Component 3 | . 1 . 2 Repair 2 | . 1 . 1 Recycling Unit Hacks . | . . . . Scanalyzer 1 | . . . 1 Retrieve Study 1 | . . . 1 Garrison Access Hacks . | . . . . Unauthorized Hacks 10 | . 9 . 1 Terminals 9 | . 8 . 1 Botnet 4 | . 3 . 1 Skim 5 | . 5 . . Fabricators . | . . . . Repair Stations . | . . . . Recycling Units 1 | . 1 . . Tunnel 1 | . 1 . . Scanalyzers . | . . . . Garrison Access . | . . . . Data Cores Recovered . | . . . . Used . | . . . . Hacking Detections 13 | . 6 . 7 Full Trace Events 2 | . . . 2 Feedback Events 1 | . . . 1 Corruption 1 | . . . 1 Feedback Blocked . | . . . . Robot Schematics Acquired . | . . . . Robots Built . | . . . . Authchips . | . . . . Time . | . . . . Total Robot Build Rating . | . . . . Part Schematics Acquired . | . . . . Parts Built . | . . . . Authchips . | . . . . Time . | . . . . Total Part Build Rating . | . . . . Part Studies Acquired 1 | . . . 1 Parts Repaired 2 | . 1 . 1 Time 93 | . 32 . 61 Parts Recycled . | . . . . Recycled Matter . | . . . . Retrieved Matter . | . . . . Retrieved Components . | . . . . Parts Scanalyzed . | . . . . Part Schematics Acquired . | . . . . Parts Damaged . | . . . . Bothacking | -11 -10 -10 -8 ------------ Run | Yrd Mat Sub Mat Used RIF Installer . | . . . . Robots Hacked . | . . . . Non-combat . | . . . . Combat . | . . . . Robot Hacks Applied . | . . . . Relay Couplers Released . | . . . . Fabnet Peak Effective % . | . . . . Robots Rewired . | . . . . Allies Hacked . | . . . . Hacks Repelled . | . . . . Allies | -11 -10 -10 -8 -------- Run | Yrd Mat Sub Mat Total Allies . | . . . . Largest Group . | . . . . Highest-Rated Group . | . . . . Highest-Rated Ally . | . . . . Total Orders . | . . . . Ally Attacks . | . . . . Total Damage . | . . . . Kills . | . . . . Allies Corrupted . | . . . . Allies Melted . | . . . . Intel | -11 -10 -10 -8 ------- Run | Yrd Mat Sub Mat Active Infowar (turns) 205 | . . 201 4 Optics 205 | . . 201 4 Robot Analysis Total . | . . . . Derelict Logs Recovered . | . . . . Drone Launches . | . . . . Drone Recoveries . | . . . . Exploration | -11 -10 -10 -8 ------------- Run | Yrd Mat Sub Mat Turns Passed 2319 | 5 806 529 979 Spaces Moved 1312 | 3 421 287 601 Core 4 | . . . 4 Treads 474 | . 334 140 . Legs 90 | 3 87 . . Wheels 610 | . . 147 463 Hover 134 | . . . 134 Flight . | . . . . Fastest Speed 52 | 120 120 90 52 Average Speed 115 | 120 151 124 85 Slowest Speed 240 | 120 160 160 240 Overloaded Moves . | . . . . Propulsion Burnouts . | . . . . Robots Hopped . | . . . . Potential Cave-ins 2 | . . . 2 Cave-ins Triggered 1 | . . . 1 Exploration Rate (%) 35 | 2 79 21 41 Regions Visited 3 Branch Regions 1 Pre-discovered Areas 1 | . 1 . . Known Exits Taken . | . . . . Unknown Exits Taken 3 | 1 1 1 . Scrap Searched 12 | . . 12 . Spaces Dug 5 | . . . 5 Terrain Destroyed 46 | . 4 . 42 Melee 5 | . . . 5 Projectile 10 | . . . 10 AOE 31 | . 4 . 27 Terrain Rammed . | . . . . Walls Destroyed . | . . . . Machines Disabled . | . . . . Actions | -11 -10 -10 -8 --------- Run | Yrd Mat Sub Mat Total 1823 | 4 529 375 915 Wait 203 | . 38 16 149 Move 1309 | 2 420 286 601 Hop . | . . . . Pick Up 35 | . 10 8 17 Fast Attach 21 | . 3 3 15 Attach 19 | . 2 3 14 Detach 7 | . 1 1 5 Swap 18 | 1 8 3 6 Drop 36 | 1 12 9 14 Fire 148 | . 31 46 71 Melee 21 | . . . 21 Ram 2 | . . . 2 Kick . | . . . . Crush 4 | . 4 . . Escape Stasis . | . . . . Rewire . | . . . . Trap . | . . . . Miscellaneous . | . . . . Route ------- -11/Scrapyard -10/Materials (discovered 4 exits: [*Mat x3] / [*Sub]) -10/Subcaves -8/Materials History --------- Turn | Location | Event 1 | -11/Scrapyard | Discovered new exit (range 2) 6 | -11/Scrapyard | Entered Materials 406 | -10/Materials | Discovered new exit (range 10) 512 | -10/Materials | Build established: Mutant 581 | -10/Materials | Discovered new exit (range 9) 679 | -10/Materials | Discovered new exit (range 9) 748 | -10/Materials | Repaired Particle Gun 799 | -10/Materials | Discovered new exit (range 9) 812 | -10/Materials | Entered Subcaves 813 | -10/Subcaves | Approached by a straggling Scientist 815 | -10/Subcaves | A swath of the cavern ceiling suddenly collapsed 960 | -10/Subcaves | Core integrity fell below 50% 1178 | -10/Subcaves | Core integrity fell below 20% 1292 | -10/Subcaves | Discovered new exit (range 12) 1321 | -10/Subcaves | Disturbed a concealed Subdweller 1341 | -10/Subcaves | Entered Materials 1341 | -8/Materials | Evolved 4 slots: Propulsion x1, Utility x1, Weapon x2 1962 | -8/Materials | Lost 3 parts (1n2w) 2054 | -8/Materials | Crushed by falling debris 2085 | -8/Materials | Lost 3 parts (2n1w) 2194 | -8/Materials | Repaired Broken Hvy. Battle Rifle 2229 | -8/Materials | Core integrity fell below 50% 2259 | -8/Materials | Core integrity fell below 20% 2285 | -8/Materials | Lost 7 parts (2p2n3u) 2320 | -8/Materials | Destroyed by G-47 Trooper with Particle Gun Last Messages --------------- 02288_ Acquired Wheel. 02288_ K-01 Serf collects debris. 02289_ System corrupted: IFF burst signal emitted. 02289_ Acquired 22 matter. 02290_ K-01 Serf collects debris. 02291_ Acquired Wheel. 02292_ R-06 Scavenger collects Terrain Scanner. 02292_ K-01 Serf collects debris. 02294_ ALERT: Hostiles spotted, dispatching reinforcements to Terminal M011. 02296_ K-01 Serf collects debris. 02296_ Acquired 49 matter. 02297_ K-01 Serf collects debris. 02306_ U-05 Engineer builds a Wall. 02309_ Insulated Plating severed. 02312_ System corrupted: Matter fused (-8). 02312_ U-05 Engineer builds a Wall. 02314_ Reactive Plating severed. 02317_ L-31 Rogue destroyed. 02318_ K-01 Serf collects debris. Map ----- +----------------------------------------------------+ | ## ##??????# ## #?????????????????????? | | ## #???????## ### #?????????????????????? | | ## %######???# #?# !#?????????????????????? | | + #???# #?# #?????????????????????? | | ## [%* #???# #?##+##+####?????????????????????? | | #######/###### ##?# #??########??????????????? | | #?# ##*##?# #??# ! #??????????????? | | #?## """" ##/#### #### #??????????????? | | #??# ""S"" !# % * # + #??????????????? | | #??# "" "" # # # " " #??????######### | | #??# # # "R" #??????#! ! ! | | #??# ! %+= """ #??????# | | ##??# !/= # ###########??????# """"""" | | ????# !/= ! !!# # #??????# """"""" | | ????# // # =# # """ """ #??????# """"""" | | ????######## # = + # """ """ #??????# """"""" | | ???????????# ] # # """ """ #?????## """"""" | | ???????????## =# # #????##" | | ???????????### [ # # " " #???## ######### | | ????????????## T # % # "R" #??## ##???????? | | ????????????########% %# """ #?#####????????? | | ??????????? % w###+##############???????? | | ????????? ^ % g # #???????? | | ???????? !!! ^"""^ % kk %u u# #???????? | | ???????? !! /g % # #???????? | | ??????????!?? """ @w! k + #???????? | | ???????????????""" ######## !# "T" #???????? | | ???????????? ^ #??????# # #???????? | | ??????????? #??????# ########???????? | | ?????????????? #??????# #??????????????? | | ?????????????? #??????# #??????????????? | | ?????????????? +??????# #??????????????? | | ????????????? #??????# #??????????????? | | ???????????????### ???????# #??????????????? | | ??????????????????#####???????# #??????????????? | | ??????????????????????????????# #??????????????? | | ??????????????????????????????# ??????????????? | | ??????????????????????????????# ??????????????? | | ??????????????????????????????# ??????????????? | | ??????????????????????????????# #??????????????? | | ??????????????????????????????? ???????????????? | | ??????????????????????????????? ???????????????? | | ?????????????????????????????????????????????????? | | ?????????????????????????????????????????????????? | | ?????????????????????????????????????????????????? | | ?????????????????????????????????????????????????? | | ?????????????????????????????????????????????????? | | ?????????????????????????????????????????????????? | | ?????????????????????????????????????????????????? | | ?????????????????????????????????????????????????? | +----------------------------------------------------+ Best States ------------- Heat Dissipation 45 Energy Generation 14 Energy Capacity 280 Matter Stores 300 Matter Capacity 300 Sight Range 21 Terrain Scan Density 10 Armor Coverage 300 Resistance: KI 20 Resistance: TH 10 Resistance: EM 15 Evasion (%) 54 Recoil Reduction 2 Item Schematics ----------------- None Robot Schematics ------------------ None Fabricated ------------ Nothing Repaired ---------- Particle Gun | 60% | -10/Materials Hvy. Battle Rifle | 30% | -8/Materials | Broken Studied --------- Arm. Wheel | -8/Materials | Hacked Alien Tech Used ----------------- None Achievements -------------- None Challenges ------------ None Game ------ Seed ReinforcedGreatCompanion Manual? 0 Play Time 00:21:44 Cumulative 1221.0 hours Start 2025.11.16 @ 13:31:05 End 2025.11.16 @ 13:47:20 Sessions 1 Manual Loads 0 Difficulty Rogue Special Mode None Game No. 1501 Rogue 1217 Adventurer 124 Explorer 160 Win Type - Total 57 Types 43/0/8/4/1/0/0/1/0/0 Lore% 92 Gallery% 86 Achievement% 64 Wizard Run 0 Options --------- Layout 0 ASCII 0 Keyboard 1 Movement Numpad Keybinds 0 Fullscreen 2 Font 18/X11 Map View 76x50 Zoom Use 0% Tactical HUD 1 Map Filters NONE Filters NONE Steam 1 RUN: e75c0246-437b-4d61-9d1b-6615af58fde1